fUSD/lending_fUSD_20250623
["ID","MTS","AMOUNT","RATE_DAILY","PERIOD"]
[367118135,1750662756010,-4219.23,0.00030958,3]
[367118136,1750662756019,-765.43,0.00030958,3]
[367118137,1750662756029,-1872.32,0.00030958,3]
[367118138,1750662756039,-3240.53,0.00030958,3]
[367118139,1750662756048,-492.32,0.00030958,3]
[367118140,1750662756058,-1684.89,0.00030958,3]
[367118141,1750662756070,-1499.13,0.00030958,3]
[367118142,1750662756079,-1822.31,0.00030958,3]
[367118143,1750662756088,-2262.37,0.00030958,3]
[367118144,1750662756098,-490.0,0.00030958,3]
[367118145,1750662756108,-745.32,0.00030958,3]
[367118146,1750662756117,-490.0,0.00030958,3]
[367118147,1750662756126,-1565.33,0.00030958,3]
[367118148,1750662756135,-3248.59,0.00030958,3]
[367118149,1750662756145,-1599.78,0.00030958,3]
[367118150,1750662756154,-1190.83,0.00030958,3]
[367118151,1750662756163,-795.18,0.00030958,3]
[367118152,1750662756172,-638.67,0.00030958,3]
[367118153,1750662756182,-8785.1,0.00030958,3]
[367118154,1750662756192,-849.6,0.00030958,3]
[367118155,1750662756201,-1583.66,0.00030958,3]
[367118156,1750662756210,-1787.94,0.00030958,3]
[367118157,1750662756219,-1335.88,0.00030958,3]
[367118158,1750662756229,-1444.68,0.00030958,3]
[367118159,1750662756238,-948.02,0.00030958,3]
[367118160,1750662756248,-490.0,0.00030958,3]
[367118161,1750662756257,-507.9,0.00030958,3]
[367118162,1750662756265,-3963.91,0.00030958,3]
[367118163,1750662756275,-1578.99,0.00030958,3]
[367118164,1750662756284,-1445.82,0.00030958,3]
[367118165,1750662756293,-1285.59,0.00030958,3]
[367118166,1750662756303,-490.0,0.00030958,3]
[367118167,1750662756312,-606.5,0.00030958,3]
[367118168,1750662756321,-609.02520502,0.00030958,3]
[367118169,1750662756331,-728.45,0.00030958,3]
[367118170,1750662756340,-806.96,0.00030958,3]
[367118171,1750662756349,-1797.81,0.00030958,3]
[367118172,1750662756358,-1831.64,0.00030958,3]
[367118173,1750662756368,-1432.05,0.00030958,3]
[367118174,1750662756378,-919.07,0.00030958,3]
[367118175,1750662756388,-490.0,0.00030958,3]
[367118176,1750662756397,-14900.62,0.00030958,3]
[367118177,1750662756408,-1833.67,0.00030958,3]
[367118178,1750662756417,-2078.39,0.00030958,3]
[367118179,1750662756427,-510.45,0.00030958,3]
[367118180,1750662756437,-490.0,0.00030958,3]
[367118181,1750662756446,-4833.93,0.00030958,3]
[367118182,1750662756455,-1601.31,0.00030958,3]
[367118183,1750662756466,-759.06,0.00030958,3]
[367118184,1750662756476,-873.41,0.00030958,3]
[367118185,1750662756486,-4669.42,0.00030958,3]
[367118186,1750662756496,-791.68,0.00030958,3]
[367118187,1750662756506,-1693.53,0.00030958,3]
[367118188,1750662756516,-990.18,0.00030958,3]
[367118189,1750662756531,-1034.99,0.00030958,3]
[367118190,1750662756540,-1620.6,0.00030958,3]
[367118191,1750662756550,-1653.45,0.00030958,3]
[367118192,1750662756560,-1389.7,0.00030958,3]
[367118193,1750662756570,-3451.15,0.00030958,3]
[367118194,1750662756580,-292.33561173,0.00030958,3]
[367118195,1750662756594,-2416.24,0.00030958,3]
[367118196,1750662756605,-993.54,0.00030958,3]
[367118197,1750662756618,-11090.94,0.00030958,3]
[367118198,1750662756629,-1799.28,0.00030958,3]
[367118199,1750662756641,-1221.42,0.00030958,3]
[367118200,1750662756651,-1701.67,0.00030958,3]
[367118201,1750662756660,-2070.18,0.00030958,3]
[367118202,1750662756670,-1378.47,0.00030958,3]
[367118203,1750662756679,-1736.17,0.00030958,3]
[367118204,1750662756689,-1087.15,0.00030958,3]
[367118205,1750662756699,-1816.97,0.00030958,3]
[367118206,1750662756709,-1834.95,0.00030958,3]
[367118207,1750662756719,-709.09,0.00030958,3]
[367118208,1750662756729,-561.08442549,0.00030958,3]
[367118209,1750662756738,-1672.0,0.00030958,3]
[367118210,1750662756748,-1571.12,0.00030958,3]
[367118211,1750662756758,-1351.61,0.00030958,3]
[367118212,1750662756767,-490.0,0.00030958,3]
[367118213,1750662756777,-490.0,0.00030958,3]
[367118214,1750662756787,-4884.01,0.00030958,3]
[367118215,1750662756797,-1729.07,0.00030958,3]
[367118216,1750662756807,-8073.75,0.00030958,3]
[367118217,1750662756816,-1652.26,0.00030958,3]
[367118218,1750662756826,-867.32,0.00030958,3]
[367118219,1750662756837,-30050.84,0.00030958,3]
[367118220,1750662756846,-1513.2,0.00030958,3]
[367118221,1750662756856,-1482.76,0.00030958,3]
[367118222,1750662756865,-1869.9,0.00030958,3]
[367118223,1750662756874,-825.47,0.00030958,3]
[367118224,1750662756884,-1291.21,0.00030958,3]
[367118225,1750662756894,-490.0,0.00030958,3]
[367118226,1750662756905,-718.8,0.00030958,3]
[367118227,1750662756915,-529.57,0.00030958,3]
[367118228,1750662756925,-1000.93,0.00030958,3]
[367118229,1750662756934,-1013.98,0.00030958,2]
[367118230,1750662756944,-749.71,0.00030958,3]
[367118231,1750662756954,-2626.45,0.00030958,3]
[367118232,1750662756963,-1301.95,0.00030958,3]
[367118233,1750662756973,-914.97,0.00030958,3]
[367118234,1750662756983,-5331.91,0.00030958,3]
[367118235,1750662756992,-6188.74,0.00030958,3]
[367118236,1750662757002,-2204.74,0.00030958,3]
[367118237,1750662757012,-733.17,0.00030958,3]
[367118238,1750662757022,-742.07,0.00030958,3]
[367118239,1750662757032,-1553.91,0.00030958,3]
[367118240,1750662757044,-1201.89,0.00030958,3]
[367118241,1750662757055,-866.05,0.00030958,3]
[367118242,1750662757065,-716.87,0.00030958,3]
[367118243,1750662757076,-490.0,0.00030958,3]
[367118244,1750662757088,-5637.09,0.00030958,3]
[367118245,1750662757099,-2465.19,0.00030958,3]
[367118246,1750662757110,-1651.87,0.00030958,3]
[367118247,1750662757120,-1607.85,0.00030958,3]
[367118248,1750662757130,-572.05,0.00030958,3]
[367118249,1750662757140,-1906.99,0.00030958,3]
[367118250,1750662757150,-1536.26,0.00030958,3]
[367118251,1750662757161,-1920.56,0.00030958,3]
[367118252,1750662757171,-2965.58,0.00030958,3]
[367118253,1750662757181,-1131.73,0.00030958,3]
[367118254,1750662757191,-764.72,0.00030958,3]
[367118255,1750662757201,-594.04,0.00030958,3]
[367118256,1750662757211,-490.0,0.00030958,3]
[367118257,1750662757220,-1385.46,0.00030958,3]
[367118258,1750662757230,-152.0,0.00030959,3]
[367118259,1750662757240,-52652.94,0.00031,7]
[367118260,1750662757250,-191.0,0.00031,30]
[367118261,1750662757260,-4000.0,0.00031,4]
[367118262,1750662757270,-1279.0,0.00031028,2]
[367118263,1750662757280,-2005.0,0.00031028,2]
[367118264,1750662757292,-929.0,0.00031028,2]
[367118265,1750662757302,-559.0,0.00031028,2]
[367118266,1750662757311,-591.0,0.00031028,2]
[367118267,1750662757321,-1677.0,0.00031028,2]
[367118268,1750662757331,-1161.0,0.00031028,2]
[367118269,1750662757341,-4097.0,0.00031028,2]
[367118270,1750662757351,-7138.0,0.00031028,2]
[367118271,1750662757361,-853.0,0.00031028,2]
[367118272,1750662757371,-156.0,0.00031028,2]
[367118273,1750662757381,-151.3,0.00031081,4]
[367118274,1750662757391,-227.38,0.00031089,2]
[367118275,1750662757400,-1258.03765544,0.00031107,24]
[367118276,1750662757410,-500.0,0.00031187,7]
[367118277,1750662757420,-443.64,0.00031193,2]
[367118278,1750662757430,-150.0,0.00031193,2]
[367118279,1750662757440,-150.0,0.00031193,2]
[367118280,1750662757450,-5455.753665,0.00031232,3]
[367118281,1750662757459,-151.476984,0.00031232,3]
[367118282,1750662757469,-906.91,0.00031232,3]
[367118283,1750662757479,-490.0,0.00031232,3]
[367118284,1750662757489,-490.0,0.00031232,3]
[367118285,1750662757499,-733.39,0.00031232,3]
[367118286,1750662757508,-490.0,0.00031232,3]
[367118287,1750662757518,-490.0,0.00031232,3]
[367118288,1750662757530,-252.921479,0.00031232,3]
[367118289,1750662757539,-958.78,0.00031232,3]
[367118290,1750662757549,-972.11,0.00031232,3]
[367118291,1750662757559,-213.81886462,0.00031232,3]
[367118292,1750662757568,-2591.829598,0.00031232,3]
[367118293,1750662757578,-615.11,0.00031232,3]
[367118294,1750662757588,-804.23,0.00031232,3]
[367118295,1750662757597,-490.0,0.00031232,3]
[367118296,1750662757607,-490.0,0.00031232,3]
[367118297,1750662757617,-490.0,0.00031232,3]
[367118298,1750662757626,-1075.31,0.00031232,3]
[367118299,1750662757636,-692.3,0.00031232,3]
[367118300,1750662757645,-811.41,0.00031232,3]
[367118301,1750662757656,-490.0,0.00031232,3]
[367118302,1750662757666,-695.49,0.00031232,3]
[367118303,1750662757675,-490.0,0.00031232,3]
[367118304,1750662757685,-977.66,0.00031232,3]
[367118305,1750662757694,-833.21,0.00031232,3]
[367118306,1750662757704,-591.25,0.00031232,3]
[367118307,1750662757713,-690.16,0.00031232,3]
[367118308,1750662757723,-1109.36,0.00031232,3]
[367118309,1750662757734,-490.0,0.00031232,3]
[367118310,1750662757743,-526.92,0.00031232,3]
[367118311,1750662757753,-519.11,0.00031232,3]
[367118312,1750662757763,-490.0,0.00031232,3]
[367118313,1750662757772,-970.12,0.00031232,3]
[367118314,1750662757781,-1478.36,0.00031232,3]
[367118315,1750662757791,-490.0,0.00031232,3]
[367118316,1750662757800,-1376.6,0.00031232,3]
[367118317,1750662757810,-490.0,0.00031232,3]
[367118318,1750662757820,-889.62,0.00031232,3]
[367118319,1750662757829,-490.0,0.00031232,3]
[367118320,1750662757839,-1155.19,0.00031232,3]
[367118321,1750662757848,-490.0,0.00031232,3]
[367118322,1750662757858,-495.01,0.00031232,3]
[367118323,1750662757868,-668.52,0.00031232,3]
[367118324,1750662757878,-611.64,0.00031232,3]
[367118325,1750662757888,-698.01,0.00031232,3]
[367118326,1750662757897,-187.97018283,0.00031232,3]
[367118327,1750662757907,-644.39,0.00031232,3]
[367118328,1750662757917,-617.7,0.00031232,3]
[367118329,1750662757927,-826.8,0.00031232,3]
[367118330,1750662757937,-490.0,0.00031232,3]
[367118331,1750662757946,-490.0,0.00031232,3]
[367118332,1750662757956,-626.46,0.00031232,3]
[367118333,1750662757966,-841.55,0.00031232,3]
[367118334,1750662757976,-625.27,0.00031232,3]
[367118335,1750662757986,-1584.78,0.00031232,3]
[367118336,1750662757996,-490.0,0.00031232,3]
[367118337,1750662758006,-490.0,0.00031232,3]
[367118338,1750662758015,-490.0,0.00031232,3]
[367118339,1750662758025,-1089.25,0.00031232,3]
[367118340,1750662758035,-914.26,0.00031232,3]
[367118341,1750662758044,-777.39,0.00031232,3]
[367118342,1750662758054,-667.3,0.00031232,3]
[367118343,1750662758064,-1172.55,0.00031232,3]
[367118344,1750662758074,-857.69,0.00031232,3]
[367118345,1750662758084,-601.26,0.00031232,3]
[367118346,1750662758094,-153.552939,0.00031232,3]
[367118347,1750662758104,-654.18,0.00031232,3]
[367118348,1750662758114,-1486.14,0.00031232,3]
[367118349,1750662758125,-563.6,0.00031232,3]
[367118350,1750662758134,-641.56,0.00031232,3]
[367118351,1750662758144,-2328.1,0.00031232,3]
[367118352,1750662758154,-490.0,0.00031232,3]
[367118353,1750662758165,-490.0,0.00031232,3]
[367118354,1750662758175,-2984.61,0.00031232,3]
[367118355,1750662758185,-834.55,0.00031232,3]
[367118356,1750662758195,-1714.75,0.00031232,3]
[367118357,1750662758204,-1666.5,0.00031232,3]
[367118358,1750662758214,-579.07,0.00031232,3]
[367118359,1750662758224,-774.87,0.00031232,3]
[367118360,1750662758234,-198.016965,0.00031232,3]
[367118361,1750662758245,-490.0,0.00031232,3]
[367118362,1750662758255,-523.64,0.00031232,3]
[367118363,1750662758265,-1685.1,0.00031232,3]
[367118364,1750662758275,-685.83,0.00031232,3]
[367118365,1750662758285,-490.0,0.00031232,3]
[367118366,1750662758295,-845.32,0.00031232,3]
[367118367,1750662758305,-490.0,0.00031232,3]
[367118368,1750662758315,-1003.013708,0.00031232,3]
[367118369,1750662758325,-407.03,0.00031232,3]
[367118370,1750662758335,-490.0,0.00031232,3]
[367118371,1750662758345,-620.28,0.00031232,3]
[367118372,1750662758355,-692.18,0.00031232,3]
[367118373,1750662758364,-583.42,0.00031232,3]
[367118374,1750662758375,-490.0,0.00031232,3]
[367118375,1750662758385,-1382.11,0.00031232,3]
[367118376,1750662758395,-957.53,0.00031232,3]
[367118377,1750662758405,-1520.85,0.00031232,3]
[367118378,1750662758416,-852.4,0.00031232,3]
[367118379,1750662758426,-1514.64,0.00031232,3]
[367118380,1750662758436,-564.98,0.00031232,3]
[367118381,1750662758446,-1413.76,0.00031232,3]
[367118382,1750662758456,-621.88,0.00031232,3]
[367118383,1750662758465,-1486.85,0.00031232,3]
[367118384,1750662758475,-643.76,0.00031232,3]
[367118385,1750662758485,-605.57,0.00031232,3]
[367118386,1750662758495,-765.6,0.00031232,3]
[367118387,1750662758505,-635.87,0.00031232,3]
[367118388,1750662758515,-490.0,0.00031232,3]
[367118389,1750662758527,-748.29,0.00031232,3]
[367118390,1750662758538,-559.87,0.00031232,3]
[367118391,1750662758548,-521.1,0.00031232,3]
[367118392,1750662758559,-702.32,0.00031232,3]
[367118393,1750662758568,-1437.96,0.00031232,3]
[367118394,1750662758579,-933.29,0.00031232,3]
[367118395,1750662758589,-623.74,0.00031232,3]
[367118396,1750662758599,-1229.23,0.00031232,3]
[367118397,1750662758608,-1240.62,0.00031232,3]
[367118398,1750662758619,-490.0,0.00031232,3]
[367118399,1750662758629,-1044.91,0.00031232,3]
[367118400,1750662758638,-636.16,0.00031232,3]
[367118401,1750662758648,-490.92,0.00031232,3]
[367118402,1750662758658,-583.46,0.00031232,3]
[367118403,1750662758917,-1648.05,0.00031232,3]
[367118404,1750662758931,-745.48,0.00031232,3]
[367118405,1750662758941,-1819.02,0.00031232,3]
[367118406,1750662758951,-1025.74,0.00031232,3]
[367118407,1750662758960,-507.64,0.00031232,3]
[367118408,1750662758970,-1776.13,0.00031232,3]
[367118409,1750662758980,-803.35,0.00031232,3]
[367118410,1750662758989,-1305.95,0.00031232,3]
[367118411,1750662758999,-825.12,0.00031232,3]
[367118412,1750662759008,-1801.52,0.00031232,3]
[367118413,1750662759018,-553.17,0.00031232,3]
[367118414,1750662759028,-1449.74,0.00031232,3]
[367118415,1750662759038,-1184.6,0.00031232,3]
[367118416,1750662759048,-2077.31,0.00031232,3]
[367118417,1750662759057,-903.1,0.00031232,3]
[367118418,1750662759067,-1228.76,0.00031232,3]
[367118419,1750662759076,-840.82,0.00031232,3]
[367118420,1750662759086,-972.48,0.00031232,3]
[367118421,1750662759096,-490.0,0.00031232,3]
[367118422,1750662759107,-698.82,0.00031232,3]
[367118423,1750662759117,-1683.09,0.00031232,3]
[367118424,1750662759126,-614.18,0.00031232,3]
[367118425,1750662759136,-1017.63,0.00031232,3]
[367118426,1750662759145,-1068.5,0.00031232,3]
[367118427,1750662759156,-492.43,0.00031232,3]
[367118428,1750662759165,-899.45,0.00031232,3]
[367118429,1750662759176,-1018.31,0.00031232,3]
[367118430,1750662759185,-187.26068838,0.00031232,3]
[367118431,1750662759195,-1034.85,0.00031232,3]
[367118432,1750662759204,-1636.32,0.00031232,3]
[367118433,1750662759215,-636.43,0.00031232,3]
[367118434,1750662759228,-514.73,0.00031232,3]
[367118435,1750662759237,-1597.54,0.00031232,3]
[367118436,1750662759247,-878.08,0.00031232,3]
[367118437,1750662759258,-933.44,0.00031232,3]
[367118438,1750662759268,-490.0,0.00031232,3]
[367118439,1750662759278,-980.14,0.00031232,3]
[367118440,1750662759288,-1351.29,0.00031232,3]
[367118441,1750662759298,-490.0,0.00031232,3]
[367118442,1750662759308,-490.0,0.00031232,3]
[367118443,1750662759319,-1021.72,0.00031232,3]
[367118444,1750662759329,-490.0,0.00031232,3]
[367118445,1750662759338,-2515.92,0.00031232,3]
[367118446,1750662759349,-490.0,0.00031232,3]
[367118447,1750662759359,-563.49,0.00031232,3]
[367118448,1750662759368,-718.42,0.00031232,3]
[367118449,1750662759378,-973.74,0.00031232,3]
[367118450,1750662759388,-490.0,0.00031232,3]
[367118451,1750662759399,-763.59,0.00031232,3]
[367118452,1750662759409,-490.0,0.00031232,3]
[367118453,1750662759419,-1171.08,0.00031232,3]
[367118454,1750662759428,-490.0,0.00031232,3]
[367118455,1750662759437,-806.32,0.00031232,3]
[367118456,1750662759447,-1313.3,0.00031232,3]
[367118457,1750662759457,-1866.63,0.00031232,3]
[367118458,1750662759467,-783.39,0.00031232,3]
[367118459,1750662759478,-1408.5,0.00031232,3]
[367118460,1750662759488,-760.51,0.00031232,3]
[367118461,1750662759498,-640.07,0.00031232,3]
[367118462,1750662759508,-1113.91,0.00031232,3]
[367118463,1750662759518,-1204.57,0.00031232,3]
[367118464,1750662759531,-1615.12,0.00031232,3]
[367118465,1750662759541,-281.26651628,0.00031232,3]
[367118466,1750662759551,-852.31,0.00031232,3]
[367118467,1750662759561,-1617.57,0.00031232,3]
[367118468,1750662759571,-1344.16,0.00031232,3]
[367118469,1750662759582,-1189.28,0.00031232,3]
[367118470,1750662759593,-924.24,0.00031232,3]
[367118471,1750662759603,-1017.87,0.00031232,3]
[367118472,1750662759614,-1327.65,0.00031232,3]
[367118473,1750662759624,-490.0,0.00031232,3]
[367118474,1750662759634,-816.97,0.00031232,3]
[367118475,1750662759644,-1505.21,0.00031232,3]
[367118476,1750662759654,-490.0,0.00031232,3]
[367118477,1750662759664,-1444.07,0.00031232,3]
[367118478,1750662759674,-490.0,0.00031232,3]
[367118479,1750662759684,-490.0,0.00031232,3]
[367118480,1750662759694,-995.43,0.00031232,3]
[367118481,1750662759704,-3010.94,0.00031232,2]
[367118482,1750662759714,-1097.45,0.00031232,3]
[367118483,1750662759724,-490.0,0.00031232,3]
[367118484,1750662759733,-753.53,0.00031232,3]
[367118485,1750662759743,-1037.06,0.00031232,3]
[367118486,1750662759753,-1995.53,0.00031232,3]
[367118487,1750662759763,-660.48,0.00031232,3]
[367118488,1750662759773,-490.0,0.00031232,3]
[367118489,1750662759782,-752.2,0.00031232,3]
[367118490,1750662759792,-1341.44,0.00031232,3]
[367118491,1750662759802,-850.05,0.00031232,3]
[367118492,1750662759812,-581.79,0.00031232,3]
[367118493,1750662759822,-2153.23,0.00031232,3]
[367118494,1750662759832,-557.61,0.00031232,3]
[367118495,1750662759842,-507.29,0.00031232,3]
[367118496,1750662759852,-572.59,0.00031232,3]
[367118497,1750662759862,-490.0,0.00031232,3]
[367118498,1750662759871,-2413.05,0.00031232,3]
[367118499,1750662759882,-566.43,0.00031232,3]
[367118500,1750662759892,-1348.78,0.00031232,3]
[367118501,1750662759904,-2316.4,0.00031232,3]
[367118502,1750662759913,-1609.27,0.00031232,3]
[367118503,1750662759923,-490.0,0.00031232,3]
[367118504,1750662759932,-569.99,0.00031232,3]
[367118505,1750662759942,-490.0,0.00031232,3]
[367118506,1750662759952,-490.0,0.00031232,3]
[367118507,1750662759962,-490.0,0.00031232,3]
[367118508,1750662759971,-731.27,0.00031232,3]
[367118509,1750662759981,-2663.87,0.00031232,3]
[367118510,1750662759990,-861.6,0.00031232,3]
[367118511,1750662760000,-560.0,0.00031232,3]
[367118512,1750662760010,-1117.5,0.00031232,3]
[367118513,1750662760020,-921.04,0.00031232,3]
[367118514,1750662760029,-783.55,0.00031232,3]
[367118515,1750662760039,-600.11,0.00031232,3]
[367118516,1750662760049,-1052.0,0.00031232,3]
[367118517,1750662760058,-490.0,0.00031232,3]
[367118518,1750662760068,-785.27,0.00031232,3]
[367118519,1750662760077,-595.61,0.00031232,3]
[367118520,1750662760087,-950.58,0.00031232,3]
[367118521,1750662760096,-1688.41,0.00031232,3]
[367118522,1750662760106,-1953.41,0.00031232,3]
[367118523,1750662760116,-523.44,0.00031232,3]
[367118524,1750662760126,-1726.17,0.00031232,3]
[367118525,1750662760135,-603.07,0.00031232,3]
[367118526,1750662760144,-1456.32,0.00031232,3]
[367118527,1750662760155,-1698.32,0.00031232,3]
[367118528,1750662760165,-490.0,0.00031232,3]
[367118529,1750662760175,-490.0,0.00031232,3]
[367118530,1750662760185,-490.0,0.00031232,3]
[367118531,1750662760196,-1007.06,0.00031232,3]
[367118532,1750662760205,-1681.01,0.00031232,3]
[367118533,1750662760215,-1708.4,0.00031232,3]
[367118534,1750662760225,-873.29,0.00031232,3]
[367118535,1750662760235,-1098.59,0.00031232,3]
[367118536,1750662760245,-1944.53,0.00031232,3]
[367118537,1750662760255,-490.0,0.00031232,3]
[367118538,1750662760264,-2433.81,0.00031232,3]
[367118539,1750662760273,-501.38,0.00031232,3]
[367118540,1750662760283,-577.0,0.00031232,3]
[367118541,1750662760293,-750.42,0.00031232,3]
[367118542,1750662760302,-662.45,0.00031232,3]
[367118543,1750662760312,-594.57468863,0.00031232,3]
[367118544,1750662760322,-1247.14,0.00031232,3]
[367118545,1750662760332,-1551.77,0.00031232,3]
[367118546,1750662760342,-1650.44,0.00031232,3]
[367118547,1750662760351,-703.59,0.00031232,3]
[367118548,1750662760362,-529.91,0.00031232,3]
[367118549,1750662760372,-490.0,0.00031232,3]
[367118550,1750662760383,-788.62,0.00031232,3]
[367118551,1750662760394,-912.47,0.00031232,3]
[367118552,1750662760405,-1251.29,0.00031232,3]
[367118553,1750662760415,-209.42844065,0.00031232,3]
[367118554,1750662760425,-655.66,0.00031232,3]
[367118555,1750662760436,-675.57,0.00031232,3]
[367118556,1750662760448,-300.0,0.00031232,3]
[367118557,1750662760458,-1664.2,0.00031232,3]
[367118558,1750662760467,-1679.9,0.00031232,3]
[367118559,1750662760477,-1433.27,0.00031232,3]
[367118560,1750662760486,-1066.4,0.00031232,3]
[367118561,1750662760496,-490.0,0.00031232,3]
[367118562,1750662760505,-572.95,0.00031232,3]
[367118563,1750662760514,-490.0,0.00031232,3]
[367118564,1750662760525,-1605.51,0.00031232,3]
[367118565,1750662760537,-1690.95,0.00031232,3]
[367118566,1750662760546,-490.0,0.00031232,3]
[367118567,1750662760555,-490.0,0.00031232,3]
[367118568,1750662760565,-1674.28,0.00031232,3]
[367118569,1750662760575,-638.77,0.00031232,3]
[367118570,1750662760585,-1574.11,0.00031232,3]
[367118571,1750662760594,-378.81,0.00031232,3]
[367118572,1750662760605,-684.38,0.00031232,3]
[367118573,1750662760614,-1278.36,0.00031232,3]
[367118574,1750662760624,-905.6,0.00031232,3]
[367118575,1750662760634,-1682.39,0.00031232,3]
[367118576,1750662760644,-1126.22,0.00031232,3]
[367118577,1750662760654,-1410.38,0.00031232,3]
[367118578,1750662760663,-1883.69,0.00031232,3]
[367118579,1750662760673,-7415.21,0.00031232,3]
[367118580,1750662760682,-2332.56,0.00031232,3]
[367118581,1750662760692,-1449.04,0.00031232,3]
[367118582,1750662760701,-849.69,0.00031232,3]
[367118583,1750662760711,-883.32,0.00031232,3]
[367118584,1750662760721,-901.3,0.00031232,3]
[367118585,1750662760731,-1248.93,0.00031232,3]
[367118586,1750662760740,-587.88,0.00031232,3]
[367118587,1750662760750,-1164.04,0.00031232,3]
[367118588,1750662760759,-1753.14,0.00031232,3]
[367118589,1750662760768,-10399.38,0.00031232,3]
[367118590,1750662760777,-4073.96,0.00031232,3]
[367118591,1750662760787,-580.67,0.00031232,3]
[367118592,1750662760796,-1448.46,0.00031232,3]
[367118593,1750662760806,-836.73,0.00031232,3]
[367118594,1750662760816,-918.93,0.00031232,3]
[367118595,1750662760826,-1355.08,0.00031232,3]
[367118596,1750662760835,-526.35,0.00031232,3]
[367118597,1750662760845,-6824.52,0.00031232,3]
[367118598,1750662760855,-1900.51,0.00031232,3]
[367118599,1750662760865,-1016.76,0.00031232,3]
[367118600,1750662760875,-3401.6,0.00031232,3]
[367118601,1750662760884,-3966.47,0.00031232,3]
[367118602,1750662760894,-490.0,0.00031232,3]
[367118603,1750662760904,-490.0,0.00031232,3]
[367118604,1750662760914,-909.73,0.00031232,3]
[367118605,1750662760923,-934.07,0.00031232,3]
[367118606,1750662760934,-4949.36,0.00031232,3]
[367118607,1750662760944,-490.0,0.00031232,3]
[367118608,1750662760955,-2915.88,0.00031232,3]
[367118609,1750662760965,-1741.72,0.00031232,3]
[367118610,1750662760974,-1585.93,0.00031232,3]
[367118611,1750662760983,-490.0,0.00031232,3]
[367118612,1750662760993,-608.52,0.00031232,3]
[367118613,1750662761002,-490.0,0.00031232,3]
[367118614,1750662761011,-18062.45,0.00031232,3]
[367118615,1750662761022,-3468.99,0.00031232,3]
[367118616,1750662761031,-1570.58,0.00031232,3]
[367118617,1750662761040,-1672.97,0.00031232,3]
[367118618,1750662761050,-798.22,0.00031232,3]
[367118619,1750662761059,-789.6,0.00031232,3]
[367118620,1750662761068,-1533.06,0.00031232,3]
[367118621,1750662761077,-814.19,0.00031232,3]
[367118622,1750662761087,-1681.4,0.00031232,3]
[367118623,1750662761097,-195.29595054,0.00031232,3]
[367118624,1750662761108,-528.64,0.00031232,3]
[367118625,1750662761118,-1980.76,0.00031232,3]
[367118626,1750662761128,-1108.02,0.00031232,3]
[367118627,1750662761138,-2594.4,0.00031232,3]
[367118628,1750662761148,-490.0,0.00031232,3]
[367118629,1750662761158,-1623.55,0.00031232,3]
[367118630,1750662761168,-490.0,0.00031232,3]
[367118631,1750662761178,-891.21,0.00031232,3]
[367118632,1750662761187,-1019.18,0.00031232,3]
[367118633,1750662761197,-1174.99,0.00031232,3]
[367118634,1750662761207,-3127.29,0.00031232,3]